[Event "Titled Tuesday Blitz June 14 Early 2022"]
[White "Puranik, Abhimanyu"]
[Black "Yilmaz, Mustafa"]
[WhiteFideId "5061245"]
[BlackFideId "6302718"]
[WhiteElo "2520"]
[BlackElo "2568"]
[Result "0-1"]
[Round "06"]
[TimeControl "180+1"]
[Date "2022.06.14"]
[WhiteClock "0:00:40"]
[BlackClock "0:01:12"]

1. Nf3 {[%clk 0:03:00]}  d5 {[%clk 0:02:57]} 2. e3 {[%clk 0:03:00]}  c6 {[%clk 0:02:57]} 3. c4 {[%clk 0:03:00]}  Nf6 {[%clk 0:02:57]} 4. b3 {[%clk 0:03:00]}  Bf5 {[%clk 0:02:55]} 5. Bb2 {[%clk 0:03:00]}  h6 {[%clk 0:02:55]} 6. Nc3 {[%clk 0:02:58]}  e6 {[%clk 0:02:55]} 7. d4 {[%clk 0:02:56]}  Ne4 {[%clk 0:02:48]} 8. Nxe4 {[%clk 0:02:52]}  Bxe4 {[%clk 0:02:47]} 9. Nd2 {[%clk 0:02:50]}  Bg6 {[%clk 0:02:37]} 10. Be2 {[%clk 0:02:41]}  Bd6 {[%clk 0:02:30]} 11. O-O {[%clk 0:02:40]}  Nd7 {[%clk 0:02:30]} 12. Nf3 {[%clk 0:02:37]}  O-O {[%clk 0:02:29]} 13. Bd3 {[%clk 0:02:37]}  Bh5 {[%clk 0:02:28]} 14. h3 {[%clk 0:02:35]}  f5 {[%clk 0:02:24]} 15. Be2 {[%clk 0:02:28]}  Bxf3 {[%clk 0:02:22]} 16. Bxf3 {[%clk 0:02:27]}  Nf6 {[%clk 0:02:23]} 17. c5 {[%clk 0:02:04]}  Bc7 {[%clk 0:02:21]} 18. b4 {[%clk 0:02:05]}  Qe7 {[%clk 0:02:17]} 19. Rb1 {[%clk 0:02:02]}  a6 {[%clk 0:02:12]} 20. a4 {[%clk 0:01:58]}  e5 {[%clk 0:02:13]} 21. dxe5 {[%clk 0:01:56]}  Bxe5 {[%clk 0:02:13]} 22. Bd4 {[%clk 0:01:52]}  Ne4 {[%clk 0:02:11]} 23. b5 {[%clk 0:01:35]}  axb5 {[%clk 0:02:10]} 24. axb5 {[%clk 0:01:35]}  Kh7 {[%clk 0:01:46]} 25. bxc6 {[%clk 0:01:31]}  bxc6 {[%clk 0:01:47]} 26. Rb6 {[%clk 0:01:31]}  Rf6 {[%clk 0:01:44]} 27. Qc2 {[%clk 0:01:11]}  Rg6 {[%clk 0:01:44]} 28. Bxe4 {[%clk 0:01:03]}  fxe4 {[%clk 0:01:42]} 29. Bxe5 {[%clk 0:01:01]}  Qxe5 {[%clk 0:01:42]} 30. f4 {[%clk 0:00:58]}  exf3 {[%clk 0:01:22]} 31. Rxc6 {[%clk 0:00:45]}  Qxe3+ {[%clk 0:01:15]} 32. Kh1 {[%clk 0:00:40]}  fxg2+ {[%clk 0:01:12]} 0-1


[Site "https://www.chess.com"]

[Event "Titled Tuesday Blitz June 14 Early 2022"]
[White "Samadov, Read"]
[Black "Niekras, Dawid"]
[WhiteFideId "13417444"]
[BlackFideId "1160451"]
[WhiteElo "2084"]
[BlackElo "2264"]
[Result "1/2-1/2"]
[Round "06"]
[TimeControl "180+1"]
[Date "2022.06.14"]
[WhiteClock "0:00:10"]
[BlackClock "0:00:02"]

1. d4 {[%clk 0:03:00]}  Nf6 {[%clk 0:02:59]} 2. c4 {[%clk 0:03:01]}  g6 {[%clk 0:02:59]} 3. Nc3 {[%clk 0:03:01]}  Bg7 {[%clk 0:03:00]} 4. g3 {[%clk 0:03:00]}  O-O {[%clk 0:02:46]} 5. Bg2 {[%clk 0:03:01]}  c5 {[%clk 0:02:47]} 6. Nf3 {[%clk 0:03:00]}  d5 {[%clk 0:02:37]} 7. dxc5 {[%clk 0:02:50]}  Qa5 {[%clk 0:02:19]} 8. cxd5 {[%clk 0:02:49]}  Nxd5 {[%clk 0:02:19]} 9. Qxd5 {[%clk 0:02:34]}  Bxc3+ {[%clk 0:02:19]} 10. Bd2 {[%clk 0:02:34]}  Rd8 {[%clk 0:02:00]} 11. Bxc3 {[%clk 0:02:12]}  Qxc3+ {[%clk 0:02:00]} 12. bxc3 {[%clk 0:02:13]}  Rxd5 {[%clk 0:02:00]} 13. Nd4 {[%clk 0:01:55]}  Rxc5 {[%clk 0:01:59]} 14. Rc1 {[%clk 0:01:55]}  Nd7 {[%clk 0:01:43]} 15. f4 {[%clk 0:01:50]}  Nb6 {[%clk 0:01:25]} 16. Kf2 {[%clk 0:01:42]}  Nc4 {[%clk 0:01:08]} 17. Rhd1 {[%clk 0:01:38]}  Bd7 {[%clk 0:00:37]} 18. Bxb7 {[%clk 0:01:36]}  Rb8 {[%clk 0:00:38]} 19. Bf3 {[%clk 0:01:33]}  Rb2 {[%clk 0:00:23]} 20. Rc2 {[%clk 0:00:39]}  Rxc2 {[%clk 0:00:23]} 21. Nxc2 {[%clk 0:00:39]}  Ba4 {[%clk 0:00:23]} 22. Rd8+ {[%clk 0:00:38]}  Kg7 {[%clk 0:00:24]} 23. Nd4 {[%clk 0:00:27]}  Nb6 {[%clk 0:00:19]} 24. Rb8 {[%clk 0:00:27]}  Rxc3 {[%clk 0:00:13]} 25. Rb7 {[%clk 0:00:28]}  Nc8 {[%clk 0:00:11]} 26. h4 {[%clk 0:00:23]}  Rc4 {[%clk 0:00:09]} 27. Nb3 {[%clk 0:00:18]}  Bxb3 {[%clk 0:00:07]} 28. axb3 {[%clk 0:00:19]}  Rc3 {[%clk 0:00:05]} 29. b4 {[%clk 0:00:19]}  Kf6 {[%clk 0:00:05]} 30. g4 {[%clk 0:00:19]}  h6 {[%clk 0:00:04]} 31. g5+ {[%clk 0:00:19]}  hxg5 {[%clk 0:00:05]} 32. hxg5+ {[%clk 0:00:19]}  Ke6 {[%clk 0:00:06]} 33. Bg4+ {[%clk 0:00:18]}  Kd6 {[%clk 0:00:05]} 34. Bxc8 {[%clk 0:00:18]}  Rxc8 {[%clk 0:00:06]} 35. Rxa7 {[%clk 0:00:19]}  Rc4 {[%clk 0:00:06]} 36. Ra6+ {[%clk 0:00:15]}  Kd7 {[%clk 0:00:07]} 37. Ra7+ {[%clk 0:00:11]}  Kd6 {[%clk 0:00:07]} 38. Ra6+ {[%clk 0:00:12]}  Kd7 {[%clk 0:00:08]} 39. b5 {[%clk 0:00:10]}  Rxf4+ {[%clk 0:00:07]} 40. Kg3 {[%clk 0:00:11]}  Rf5 {[%clk 0:00:06]} 41. Ra7+ {[%clk 0:00:09]}  Kd6 {[%clk 0:00:06]} 42. Ra6+ {[%clk 0:00:10]}  Kd7 {[%clk 0:00:04]} 43. Ra7+ {[%clk 0:00:10]}  Kd6 {[%clk 0:00:04]} 44. Ra6+ {[%clk 0:00:10]}  Kd7 {[%clk 0:00:02]} 1/2-1/2


[Site "https://www.chess.com"]

[Event "Titled Tuesday Blitz June 14 Early 2022"]
[White "Shimanov, Aleksandr"]
[Black "Karolczuk, Iwo"]
[WhiteFideId "4198603"]
[BlackFideId "21816972"]
[WhiteElo "2605"]
[BlackElo "2281"]
[Result "1-0"]
[Round "06"]
[TimeControl "180+1"]
[Date "2022.06.14"]
[WhiteClock "0:00:23"]
[BlackClock "0:00:04"]

1. e4 {[%clk 0:03:00]}  c5 {[%clk 0:02:58]} 2. Nf3 {[%clk 0:03:00]}  d6 {[%clk 0:02:55]} 3. d4 {[%clk 0:02:55]}  cxd4 {[%clk 0:02:56]} 4. Qxd4 {[%clk 0:02:56]}  e5 {[%clk 0:02:52]} 5. Qd1 {[%clk 0:02:51]}  Nf6 {[%clk 0:02:46]} 6. Nc3 {[%clk 0:02:49]}  h6 {[%clk 0:02:45]} 7. Bc4 {[%clk 0:02:48]}  Be6 {[%clk 0:02:44]} 8. Bxe6 {[%clk 0:02:26]}  fxe6 {[%clk 0:02:45]} 9. Nh4 {[%clk 0:02:25]}  Kf7 {[%clk 0:02:18]} 10. O-O {[%clk 0:02:23]}  g5 {[%clk 0:02:17]} 11. Nf3 {[%clk 0:02:23]}  Nc6 {[%clk 0:02:16]} 12. Ne1 {[%clk 0:02:11]}  a6 {[%clk 0:02:08]} 13. Nd3 {[%clk 0:02:11]}  b5 {[%clk 0:02:06]} 14. a3 {[%clk 0:02:10]}  Rc8 {[%clk 0:01:53]} 15. Kh1 {[%clk 0:02:08]}  Bg7 {[%clk 0:01:48]} 16. g3 {[%clk 0:01:59]}  g4 {[%clk 0:01:01]} 17. f4 {[%clk 0:01:52]}  gxf3 {[%clk 0:01:00]} 18. Qxf3 {[%clk 0:01:52]}  Rf8 {[%clk 0:01:00]} 19. Be3 {[%clk 0:01:29]}  Kg8 {[%clk 0:00:58]} 20. Qg2 {[%clk 0:01:29]}  d5 {[%clk 0:00:58]} 21. Bg1 {[%clk 0:01:26]}  d4 {[%clk 0:00:37]} 22. Nb1 {[%clk 0:00:59]}  Ng4 {[%clk 0:00:34]} 23. Nd2 {[%clk 0:00:56]}  Qe7 {[%clk 0:00:28]} 24. Qe2 {[%clk 0:00:55]}  Qg5 {[%clk 0:00:23]} 25. Nf3 {[%clk 0:00:55]}  Qh5 {[%clk 0:00:13]} 26. Kg2 {[%clk 0:00:52]}  Nf6 {[%clk 0:00:10]} 27. Rae1 {[%clk 0:00:50]}  Nd7 {[%clk 0:00:09]} 28. h3 {[%clk 0:00:45]}  Kh8 {[%clk 0:00:08]} 29. g4 {[%clk 0:00:45]}  Qg6 {[%clk 0:00:08]} 30. Bh2 {[%clk 0:00:45]}  Kh7 {[%clk 0:00:08]} 31. Bg3 {[%clk 0:00:42]}  Rf7 {[%clk 0:00:08]} 32. Nh4 {[%clk 0:00:42]}  Rxf1 {[%clk 0:00:06]} 33. Nxg6 {[%clk 0:00:41]}  Rxe1 {[%clk 0:00:06]} 34. Bxe1 {[%clk 0:00:34]}  Kxg6 {[%clk 0:00:07]} 35. h4 {[%clk 0:00:34]}  Rf8 {[%clk 0:00:07]} 36. h5+ {[%clk 0:00:35]}  Kh7 {[%clk 0:00:08]} 37. g5 {[%clk 0:00:32]}  hxg5 {[%clk 0:00:07]} 38. Qg4 {[%clk 0:00:32]}  Nd8 {[%clk 0:00:06]} 39. Qxg5 {[%clk 0:00:30]}  Rf6 {[%clk 0:00:06]} 40. Bh4 {[%clk 0:00:26]}  Bh6 {[%clk 0:00:06]} 41. Qg4 {[%clk 0:00:25]}  Rf7 {[%clk 0:00:04]} 42. Qg6+ {[%clk 0:00:24]}  Kh8 {[%clk 0:00:04]} 43. Qxh6+ {[%clk 0:00:24]}  Kg8 {[%clk 0:00:04]} 44. Bxd8 {[%clk 0:00:23]} 1-0


[Site "https://www.chess.com"]

[Event "Titled Tuesday Blitz June 14 Early 2022"]
[White "Tatarinov, Dmitry"]
[Black "Le, Tuan Minh"]
[WhiteFideId "24160067"]
[BlackFideId "12401153"]
[WhiteElo "2302"]
[BlackElo "2530"]
[Result "0-1"]
[Round "06"]
[TimeControl "180+1"]
[Date "2022.06.14"]
[WhiteClock "0:00:32"]
[BlackClock "0:01:49"]

1. c4 {[%clk 0:02:59]}  c6 {[%clk 0:03:00]} 2. d4 {[%clk 0:02:57]}  d5 {[%clk 0:03:00]} 3. e3 {[%clk 0:02:57]}  Nf6 {[%clk 0:03:01]} 4. Nc3 {[%clk 0:02:57]}  a6 {[%clk 0:03:01]} 5. Nf3 {[%clk 0:02:57]}  Bf5 {[%clk 0:03:01]} 6. Bd3 {[%clk 0:02:55]}  Bg6 {[%clk 0:03:01]} 7. O-O {[%clk 0:02:53]}  e6 {[%clk 0:03:01]} 8. Qe2 {[%clk 0:02:48]}  Nbd7 {[%clk 0:02:56]} 9. e4 {[%clk 0:02:46]}  dxe4 {[%clk 0:02:56]} 10. Nxe4 {[%clk 0:02:45]}  Be7 {[%clk 0:02:57]} 11. Ne5 {[%clk 0:02:40]}  O-O {[%clk 0:02:48]} 12. Nxg6 {[%clk 0:02:39]}  hxg6 {[%clk 0:02:48]} 13. Ng5 {[%clk 0:02:34]}  Re8 {[%clk 0:02:48]} 14. Bd2 {[%clk 0:02:09]}  Nf8 {[%clk 0:02:46]} 15. Rad1 {[%clk 0:02:09]}  Qxd4 {[%clk 0:02:43]} 16. Be3 {[%clk 0:01:55]}  Qe5 {[%clk 0:02:34]} 17. Qf3 {[%clk 0:01:31]}  Rad8 {[%clk 0:02:27]} 18. b3 {[%clk 0:01:29]}  N8h7 {[%clk 0:02:08]} 19. Nh3 {[%clk 0:01:13]}  Bc5 {[%clk 0:01:55]} 20. Bf4 {[%clk 0:01:12]}  Qh5 {[%clk 0:01:54]} 21. Qg3 {[%clk 0:01:04]}  Ne4 {[%clk 0:01:52]} 22. Bxe4 {[%clk 0:00:38]}  Rxd1 {[%clk 0:01:50]} 23. Bf3 {[%clk 0:00:36]}  Rxf1+ {[%clk 0:01:50]} 24. Kxf1 {[%clk 0:00:37]}  Qf5 {[%clk 0:01:50]} 25. Qxg6 {[%clk 0:00:37]}  Qxg6 {[%clk 0:01:49]} 26. Be4 {[%clk 0:00:35]}  Qxe4 {[%clk 0:01:49]} 27. Ng5 {[%clk 0:00:34]}  Qxf4 {[%clk 0:01:49]} 28. g4 {[%clk 0:00:32]}  Qxf2# {[%clk 0:01:49]} 0-1


[Site "https://www.chess.com"]

[Event "Titled Tuesday Blitz June 14 Early 2022"]
[White "Zhigalko, Sergei"]
[Black "Kucuksari, Kaan"]
[WhiteFideId "13502956"]
[BlackFideId "6380166"]
[WhiteElo "2662"]
[BlackElo "2305"]
[Result "1-0"]
[Round "06"]
[TimeControl "180+1"]
[Date "2022.06.14"]
[WhiteClock "0:00:04"]
[BlackClock "0:00:03"]

1. e4 {[%clk 0:03:00]}  c6 {[%clk 0:02:08]} 2. d4 {[%clk 0:02:59]}  d5 {[%clk 0:02:08]} 3. e5 {[%clk 0:02:59]}  c5 {[%clk 0:02:06]} 4. Nf3 {[%clk 0:03:00]}  Nc6 {[%clk 0:02:03]} 5. dxc5 {[%clk 0:03:00]}  Bg4 {[%clk 0:02:03]} 6. c3 {[%clk 0:03:00]}  e6 {[%clk 0:01:56]} 7. Be3 {[%clk 0:03:00]}  Nge7 {[%clk 0:01:52]} 8. Bb5 {[%clk 0:03:00]}  Nf5 {[%clk 0:01:50]} 9. Qa4 {[%clk 0:02:58]}  Bxf3 {[%clk 0:01:49]} 10. Bxc6+ {[%clk 0:02:58]}  bxc6 {[%clk 0:01:49]} 11. Qxc6+ {[%clk 0:02:59]}  Ke7 {[%clk 0:01:49]} 12. Qb7+ {[%clk 0:02:59]}  Ke8 {[%clk 0:01:49]} 13. Qc6+ {[%clk 0:02:59]}  Ke7 {[%clk 0:01:48]} 14. Qb7+ {[%clk 0:02:57]}  Ke8 {[%clk 0:01:48]} 15. gxf3 {[%clk 0:02:58]}  Rb8 {[%clk 0:01:40]} 16. Qc6+ {[%clk 0:02:57]}  Qd7 {[%clk 0:01:40]} 17. Qxd7+ {[%clk 0:02:57]}  Kxd7 {[%clk 0:01:41]} 18. b4 {[%clk 0:02:58]}  d4 {[%clk 0:01:34]} 19. Bd2 {[%clk 0:02:04]}  Kc6 {[%clk 0:01:28]} 20. Ke2 {[%clk 0:01:59]}  Be7 {[%clk 0:01:21]} 21. Rc1 {[%clk 0:01:40]}  Rhd8 {[%clk 0:01:17]} 22. a3 {[%clk 0:01:39]}  f6 {[%clk 0:00:54]} 23. f4 {[%clk 0:01:32]}  Kd5 {[%clk 0:00:30]} 24. c4+ {[%clk 0:01:26]}  Kc6 {[%clk 0:00:31]} 25. Kd3 {[%clk 0:01:26]}  fxe5 {[%clk 0:00:24]} 26. fxe5 {[%clk 0:01:26]}  Rf8 {[%clk 0:00:24]} 27. f4 {[%clk 0:01:20]}  Rbd8 {[%clk 0:00:20]} 28. Rg1 {[%clk 0:01:18]}  g5 {[%clk 0:00:20]} 29. fxg5 {[%clk 0:00:48]}  Nh4 {[%clk 0:00:20]} 30. b5+ {[%clk 0:00:44]}  Kb7 {[%clk 0:00:18]} 31. c6+ {[%clk 0:00:44]}  Kc8 {[%clk 0:00:16]} 32. Rg3 {[%clk 0:00:27]}  Ng6 {[%clk 0:00:15]} 33. Rh3 {[%clk 0:00:15]}  Nxe5+ {[%clk 0:00:15]} 34. Ke4 {[%clk 0:00:13]}  Nxc4 {[%clk 0:00:15]} 35. Rxh7 {[%clk 0:00:13]}  Bc5 {[%clk 0:00:09]} 36. Bb4 {[%clk 0:00:08]}  Nd6+ {[%clk 0:00:07]} 37. Kd3 {[%clk 0:00:05]}  Rf3+ {[%clk 0:00:08]} 38. Kc2 {[%clk 0:00:05]}  d3+ {[%clk 0:00:08]} 39. Kb3 {[%clk 0:00:03]}  d2+ {[%clk 0:00:07]} 40. Kc2 {[%clk 0:00:03]}  Nc4 {[%clk 0:00:05]} 41. Bxd2 {[%clk 0:00:02]}  Rxd2+ {[%clk 0:00:04]} 42. Nxd2 {[%clk 0:00:03]}  Rf2 {[%clk 0:00:03]} 43. Kc3 {[%clk 0:00:04]}  Nxd2 {[%clk 0:00:03]} 44. Rd1 {[%clk 0:00:04]}  Ne4+ {[%clk 0:00:03]} 45. Kc4 {[%clk 0:00:04]}  Bb6 {[%clk 0:00:03]} 46. Rh8+ {[%clk 0:00:03]}  Kc7 {[%clk 0:00:03]} 47. Rd7# {[%clk 0:00:04]} 1-0


[Site "https://www.chess.com"]

[Event "Titled Tuesday Blitz June 14 Early 2022"]
[White "Zierk, Steven"]
[Black "Gaehwiler, Gabriel"]
[WhiteFideId "2034255"]
[BlackFideId "1314530"]
[WhiteElo "2494"]
[BlackElo "2383"]
[Result "1-0"]
[Round "06"]
[TimeControl "180+1"]
[Date "2022.06.14"]
[WhiteClock "0:01:20"]
[BlackClock "0:00:02"]

1. d4 {[%clk 0:02:58]}  Nf6 {[%clk 0:02:57]} 2. c4 {[%clk 0:02:58]}  g6 {[%clk 0:02:57]} 3. Nc3 {[%clk 0:02:57]}  Bg7 {[%clk 0:02:58]} 4. e4 {[%clk 0:02:58]}  O-O {[%clk 0:02:59]} 5. Nf3 {[%clk 0:02:58]}  d6 {[%clk 0:02:58]} 6. Be2 {[%clk 0:02:58]}  e5 {[%clk 0:02:58]} 7. Be3 {[%clk 0:02:58]}  exd4 {[%clk 0:02:56]} 8. Nxd4 {[%clk 0:02:58]}  Re8 {[%clk 0:02:56]} 9. f3 {[%clk 0:02:57]}  c6 {[%clk 0:02:57]} 10. Bf2 {[%clk 0:02:58]}  d5 {[%clk 0:02:55]} 11. exd5 {[%clk 0:02:58]}  cxd5 {[%clk 0:02:56]} 12. O-O {[%clk 0:02:58]}  Nc6 {[%clk 0:02:49]} 13. c5 {[%clk 0:02:56]}  a6 {[%clk 0:02:20]} 14. Qd2 {[%clk 0:02:48]}  Bd7 {[%clk 0:02:15]} 15. Rad1 {[%clk 0:02:46]}  Nxd4 {[%clk 0:02:15]} 16. Bxd4 {[%clk 0:02:46]}  Bc6 {[%clk 0:02:16]} 17. Rfe1 {[%clk 0:02:28]}  Nh5 {[%clk 0:01:57]} 18. Bxg7 {[%clk 0:02:26]}  Nxg7 {[%clk 0:01:37]} 19. Nxd5 {[%clk 0:02:24]}  Bxd5 {[%clk 0:01:12]} 20. Qxd5 {[%clk 0:02:23]}  Qxd5 {[%clk 0:00:59]} 21. Rxd5 {[%clk 0:02:22]}  Re7 {[%clk 0:01:00]} 22. Kf2 {[%clk 0:02:09]}  Rae8 {[%clk 0:00:57]} 23. Rdd1 {[%clk 0:02:09]}  Nf5 {[%clk 0:00:35]} 24. Bd3 {[%clk 0:01:50]}  Ne3 {[%clk 0:00:30]} 25. Rc1 {[%clk 0:01:50]}  f5 {[%clk 0:00:26]} 26. g3 {[%clk 0:01:45]}  g5 {[%clk 0:00:22]} 27. c6 {[%clk 0:01:41]}  bxc6 {[%clk 0:00:21]} 28. Bxa6 {[%clk 0:01:42]}  f4 {[%clk 0:00:19]} 29. gxf4 {[%clk 0:01:37]}  gxf4 {[%clk 0:00:20]} 30. Rg1+ {[%clk 0:01:36]}  Kf8 {[%clk 0:00:20]} 31. Rxc6 {[%clk 0:01:37]}  Rd8 {[%clk 0:00:15]} 32. Rf6+ {[%clk 0:01:34]}  Rf7 {[%clk 0:00:13]} 33. Rxf7+ {[%clk 0:01:30]}  Kxf7 {[%clk 0:00:14]} 34. Ke2 {[%clk 0:01:26]}  Ra8 {[%clk 0:00:12]} 35. Bd3 {[%clk 0:01:25]}  Rxa2 {[%clk 0:00:12]} 36. Rb1 {[%clk 0:01:25]}  h6 {[%clk 0:00:11]} 37. Kd2 {[%clk 0:01:25]}  Kf6 {[%clk 0:00:11]} 38. Kc3 {[%clk 0:01:24]}  Ra8 {[%clk 0:00:09]} 39. b4 {[%clk 0:01:22]}  Rc8+ {[%clk 0:00:09]} 40. Kb3 {[%clk 0:01:23]}  Ke5 {[%clk 0:00:09]} 41. Be4 {[%clk 0:01:21]}  Kd4 {[%clk 0:00:09]} 42. b5 {[%clk 0:01:20]}  Rc3+ {[%clk 0:00:03]} 43. Kb4 {[%clk 0:01:20]}  Rc4+ {[%clk 0:00:02]} 44. Ka5 {[%clk 0:01:20]} 1-0


[Site "https://www.chess.com"]

[Event "Titled Tuesday Blitz June 14 Early 2022"]
[White "Aditya Mittal"]
[Black "Kowalczyk, Pawel"]
[WhiteFideId "35042025"]
[BlackFideId "1130641"]
[WhiteElo "2303"]
[BlackElo "2344"]
[Result "1-0"]
[Round "07"]
[TimeControl "180+1"]
[Date "2022.06.14"]
[WhiteClock "0:00:03"]
[BlackClock "0:00:24"]

1. d4 {[%clk 0:03:00]}  Nf6 {[%clk 0:02:59]} 2. c4 {[%clk 0:03:01]}  c5 {[%clk 0:02:59]} 3. d5 {[%clk 0:03:01]}  b5 {[%clk 0:03:00]} 4. cxb5 {[%clk 0:03:02]}  a6 {[%clk 0:03:00]} 5. bxa6 {[%clk 0:03:03]}  Bxa6 {[%clk 0:03:01]} 6. Nc3 {[%clk 0:03:03]}  d6 {[%clk 0:03:01]} 7. e4 {[%clk 0:03:03]}  Bxf1 {[%clk 0:03:02]} 8. Kxf1 {[%clk 0:03:04]}  g6 {[%clk 0:03:03]} 9. g3 {[%clk 0:03:05]}  Bg7 {[%clk 0:03:03]} 10. Kg2 {[%clk 0:03:05]}  O-O {[%clk 0:03:04]} 11. Nf3 {[%clk 0:03:04]}  Nbd7 {[%clk 0:03:04]} 12. a4 {[%clk 0:03:05]}  Qb6 {[%clk 0:03:01]} 13. Qc2 {[%clk 0:03:05]}  Rfb8 {[%clk 0:03:00]} 14. Nb5 {[%clk 0:03:00]}  Ng4 {[%clk 0:02:53]} 15. Bg5 {[%clk 0:02:54]}  Kf8 {[%clk 0:02:46]} 16. Nd2 {[%clk 0:02:49]}  h6 {[%clk 0:02:44]} 17. Nc4 {[%clk 0:02:49]}  Qb7 {[%clk 0:02:36]} 18. Bd2 {[%clk 0:02:43]}  Nge5 {[%clk 0:02:31]} 19. Ne3 {[%clk 0:02:29]}  Nb6 {[%clk 0:02:23]} 20. Bc3 {[%clk 0:02:09]}  Ned7 {[%clk 0:02:08]} 21. b3 {[%clk 0:02:04]}  Nf6 {[%clk 0:01:59]} 22. Rhd1 {[%clk 0:02:02]}  h5 {[%clk 0:01:55]} 23. f4 {[%clk 0:01:52]}  Nbd7 {[%clk 0:01:41]} 24. Nc4 {[%clk 0:01:49]}  h4 {[%clk 0:01:35]} 25. Qd3 {[%clk 0:01:47]}  Qc8 {[%clk 0:01:30]} 26. e5 {[%clk 0:01:32]}  dxe5 {[%clk 0:01:30]} 27. fxe5 {[%clk 0:01:33]}  Nh5 {[%clk 0:01:28]} 28. Rf1 {[%clk 0:01:31]}  Kg8 {[%clk 0:01:25]} 29. e6 {[%clk 0:01:30]}  Ndf6 {[%clk 0:01:23]} 30. exf7+ {[%clk 0:01:30]}  Kxf7 {[%clk 0:01:22]} 31. Ne5+ {[%clk 0:01:30]}  Kg8 {[%clk 0:01:23]} 32. Qxg6 {[%clk 0:01:27]}  hxg3 {[%clk 0:01:16]} 33. hxg3 {[%clk 0:01:26]}  Qb7 {[%clk 0:01:08]} 34. Nc6 {[%clk 0:01:26]}  Qd7 {[%clk 0:01:06]} 35. Rad1 {[%clk 0:01:21]}  Rxb5 {[%clk 0:01:05]} 36. axb5 {[%clk 0:01:19]}  Ra2+ {[%clk 0:01:05]} 37. Rf2 {[%clk 0:00:51]}  Rxf2+ {[%clk 0:01:05]} 38. Kxf2 {[%clk 0:00:52]}  Qh3 {[%clk 0:01:05]} 39. Nxe7+ {[%clk 0:00:35]}  Kf8 {[%clk 0:01:02]} 40. Nf5 {[%clk 0:00:28]}  Ne4+ {[%clk 0:00:57]} 41. Kf3 {[%clk 0:00:29]}  Nxc3 {[%clk 0:00:53]} 42. Re1 {[%clk 0:00:28]}  Ne4 {[%clk 0:00:41]} 43. Rxe4 {[%clk 0:00:18]}  Qh1+ {[%clk 0:00:41]} 44. Ke3 {[%clk 0:00:16]}  Qe1+ {[%clk 0:00:40]} 45. Kf3 {[%clk 0:00:12]}  Qh1+ {[%clk 0:00:38]} 46. Kf2 {[%clk 0:00:08]}  Qxe4 {[%clk 0:00:36]} 47. Qxh5 {[%clk 0:00:09]}  Qxd5 {[%clk 0:00:34]} 48. Qf3 {[%clk 0:00:06]}  Qd2+ {[%clk 0:00:31]} 49. Qe2 {[%clk 0:00:06]}  Bd4+ {[%clk 0:00:23]} 50. Nxd4 {[%clk 0:00:04]}  Qxd4+ {[%clk 0:00:24]} 51. Qe3 {[%clk 0:00:04]}  Qb4 {[%clk 0:00:24]} 52. Qf4+ {[%clk 0:00:03]} 1-0


[Site "https://www.chess.com"]

[Event "Titled Tuesday Blitz June 14 Early 2022"]
[White "Babazada, Khazar"]
[Black "Shimanov, Aleksandr"]
[WhiteFideId "13413554"]
[BlackFideId "4198603"]
[WhiteElo "2406"]
[BlackElo "2605"]
[Result "0-1"]
[Round "07"]
[TimeControl "180+1"]
[Date "2022.06.14"]
[WhiteClock "0:00:36"]
[BlackClock "0:00:07"]

1. e4 {[%clk 0:02:55]}  d5 {[%clk 0:03:00]} 2. Nc3 {[%clk 0:02:55]}  d4 {[%clk 0:02:57]} 3. Nce2 {[%clk 0:02:55]}  e5 {[%clk 0:02:57]} 4. d3 {[%clk 0:02:56]}  c5 {[%clk 0:02:56]} 5. g3 {[%clk 0:02:56]}  Nc6 {[%clk 0:02:56]} 6. Bg2 {[%clk 0:02:57]}  Be6 {[%clk 0:02:55]} 7. f4 {[%clk 0:02:56]}  f6 {[%clk 0:02:55]} 8. Nf3 {[%clk 0:02:57]}  Bd6 {[%clk 0:02:55]} 9. O-O {[%clk 0:02:57]}  Nge7 {[%clk 0:02:51]} 10. f5 {[%clk 0:02:57]}  Bf7 {[%clk 0:02:51]} 11. g4 {[%clk 0:02:57]}  h6 {[%clk 0:02:47]} 12. h4 {[%clk 0:02:57]}  c4 {[%clk 0:02:45]} 13. Ng3 {[%clk 0:02:57]}  b5 {[%clk 0:02:44]} 14. g5 {[%clk 0:02:54]}  hxg5 {[%clk 0:02:43]} 15. hxg5 {[%clk 0:02:55]}  Qb6 {[%clk 0:02:41]} 16. b3 {[%clk 0:02:52]}  cxd3 {[%clk 0:02:33]} 17. cxd3 {[%clk 0:02:52]}  Rc8 {[%clk 0:02:33]} 18. Rf2 {[%clk 0:02:49]}  Kd7 {[%clk 0:02:29]} 19. Nh2 {[%clk 0:02:40]}  Nb4 {[%clk 0:01:59]} 20. Ng4 {[%clk 0:02:31]}  Nxd3 {[%clk 0:01:40]} 21. gxf6 {[%clk 0:01:41]}  Nxf2 {[%clk 0:01:38]} 22. Kxf2 {[%clk 0:01:42]}  gxf6 {[%clk 0:01:32]} 23. Nxf6+ {[%clk 0:01:43]}  Kd8 {[%clk 0:01:32]} 24. Kf1 {[%clk 0:01:36]}  Rc3 {[%clk 0:01:25]} 25. Qe1 {[%clk 0:01:28]}  b4 {[%clk 0:01:22]} 26. Bg5 {[%clk 0:01:25]}  Kc8 {[%clk 0:01:09]} 27. Ne2 {[%clk 0:01:05]}  Qb5 {[%clk 0:01:00]} 28. Kg1 {[%clk 0:01:04]}  Kb8 {[%clk 0:00:49]} 29. Bf1 {[%clk 0:01:02]}  Qc6 {[%clk 0:00:45]} 30. Nxc3 {[%clk 0:01:01]}  bxc3 {[%clk 0:00:45]} 31. Bd3 {[%clk 0:01:00]}  Rh3 {[%clk 0:00:44]} 32. Bf1 {[%clk 0:00:55]}  Rh8 {[%clk 0:00:35]} 33. Bd3 {[%clk 0:00:56]}  Nc8 {[%clk 0:00:19]} 34. Qf2 {[%clk 0:00:53]}  Nb6 {[%clk 0:00:19]} 35. Kg2 {[%clk 0:00:49]}  Nd7 {[%clk 0:00:19]} 36. Nxd7+ {[%clk 0:00:45]}  Qxd7 {[%clk 0:00:20]} 37. Kf3 {[%clk 0:00:45]}  Rh3+ {[%clk 0:00:20]} 38. Kg4 {[%clk 0:00:43]}  Rxd3 {[%clk 0:00:19]} 39. Rh1 {[%clk 0:00:43]}  Qc6 {[%clk 0:00:19]} 40. Qe2 {[%clk 0:00:39]}  Re3 {[%clk 0:00:10]} 41. Rh8+ {[%clk 0:00:36]}  Kb7 {[%clk 0:00:10]} 42. Bxe3 {[%clk 0:00:34]}  Qxe4+ {[%clk 0:00:10]} 43. Kg5 {[%clk 0:00:35]}  Be7+ {[%clk 0:00:08]} 44. f6 {[%clk 0:00:33]}  Qg6+ {[%clk 0:00:09]} 45. Kh4 {[%clk 0:00:33]}  Bxf6+ {[%clk 0:00:09]} 46. Kh3 {[%clk 0:00:34]}  Bxh8 {[%clk 0:00:08]} 47. Qb5+ {[%clk 0:00:33]}  Qb6 {[%clk 0:00:07]} 48. Qd7+ {[%clk 0:00:34]}  Qc7 {[%clk 0:00:07]} 49. Qb5+ {[%clk 0:00:34]}  Kc8 {[%clk 0:00:08]} 50. Qa6+ {[%clk 0:00:35]}  Qb7 {[%clk 0:00:08]} 51. Qh6 {[%clk 0:00:35]}  Qd7+ {[%clk 0:00:08]} 52. Kh2 {[%clk 0:00:35]}  dxe3 {[%clk 0:00:08]} 53. Qxh8+ {[%clk 0:00:35]}  Kb7 {[%clk 0:00:09]} 54. Qxe5 {[%clk 0:00:36]}  Qc7 {[%clk 0:00:07]} 0-1


[Site "https://www.chess.com"]